[Event "Titled Tuesday Blitz June 14 Late 2022"]
[White "Moon, Benjamin"]
[Black "Moroni, Luca Jr"]
[WhiteFideId "2064847"]
[BlackFideId "865834"]
[WhiteElo "2549"]
[BlackElo "2573"]
[Result "1-0"]
[Round "02"]
[TimeControl "180+1"]
[Date "2022.06.14"]
[WhiteClock "0:00:12"]
[BlackClock "0:00:05"]

1. d4 {[%clk 0:03:00]}  d6 {[%clk 0:03:00]} 2. Nf3 {[%clk 0:03:01]}  g6 {[%clk 0:03:00]} 3. e4 {[%clk 0:02:58]}  Bg7 {[%clk 0:03:00]} 4. Nbd2 {[%clk 0:02:59]}  Nd7 {[%clk 0:02:57]} 5. Bc4 {[%clk 0:02:57]}  e6 {[%clk 0:02:55]} 6. O-O {[%clk 0:02:57]}  Ne7 {[%clk 0:02:55]} 7. Re1 {[%clk 0:02:55]}  a6 {[%clk 0:02:56]} 8. a4 {[%clk 0:02:55]}  b6 {[%clk 0:02:56]} 9. c3 {[%clk 0:02:55]}  Bb7 {[%clk 0:02:57]} 10. Nf1 {[%clk 0:02:55]}  O-O {[%clk 0:02:53]} 11. Ng3 {[%clk 0:02:55]}  c5 {[%clk 0:02:52]} 12. Bg5 {[%clk 0:02:48]}  h6 {[%clk 0:02:50]} 13. Be3 {[%clk 0:02:44]}  Qc7 {[%clk 0:02:47]} 14. Bd3 {[%clk 0:02:37]}  Bc6 {[%clk 0:02:34]} 15. Qd2 {[%clk 0:02:37]}  Kh7 {[%clk 0:02:34]} 16. h4 {[%clk 0:02:37]}  b5 {[%clk 0:02:17]} 17. axb5 {[%clk 0:02:15]}  axb5 {[%clk 0:02:17]} 18. h5 {[%clk 0:02:14]}  c4 {[%clk 0:02:02]} 19. Bc2 {[%clk 0:02:12]}  e5 {[%clk 0:02:03]} 20. Nh2 {[%clk 0:01:25]}  Nf6 {[%clk 0:01:37]} 21. d5 {[%clk 0:01:19]}  Bd7 {[%clk 0:01:35]} 22. Rxa8 {[%clk 0:01:13]}  Rxa8 {[%clk 0:01:34]} 23. f4 {[%clk 0:01:13]}  exf4 {[%clk 0:01:04]} 24. Bxf4 {[%clk 0:01:14]}  Ra2 {[%clk 0:01:04]} 25. Bb1 {[%clk 0:01:10]}  Ra1 {[%clk 0:01:04]} 26. e5 {[%clk 0:00:58]}  Nfxd5 {[%clk 0:01:03]} 27. Bxg6+ {[%clk 0:00:47]}  fxg6 {[%clk 0:01:02]} 28. Rxa1 {[%clk 0:00:43]}  Qc5+ {[%clk 0:00:32]} 29. Kh1 {[%clk 0:00:42]}  dxe5 {[%clk 0:00:31]} 30. Ne4 {[%clk 0:00:42]}  Qc6 {[%clk 0:00:27]} 31. Be3 {[%clk 0:00:36]}  Nxe3 {[%clk 0:00:24]} 32. Qxe3 {[%clk 0:00:36]}  Nf5 {[%clk 0:00:24]} 33. hxg6+ {[%clk 0:00:34]}  Qxg6 {[%clk 0:00:11]} 34. Qc5 {[%clk 0:00:21]}  Bc6 {[%clk 0:00:05]} 35. Ra6 {[%clk 0:00:20]}  Qh5 {[%clk 0:00:03]} 36. Rxc6 {[%clk 0:00:16]}  Qd1+ {[%clk 0:00:03]} 37. Qg1 {[%clk 0:00:17]}  Qd5 {[%clk 0:00:04]} 38. Nf6+ {[%clk 0:00:16]}  Bxf6 {[%clk 0:00:04]} 39. Rc7+ {[%clk 0:00:15]}  Kg6 {[%clk 0:00:04]} 40. Qf2 {[%clk 0:00:14]}  Qd1+ {[%clk 0:00:04]} 41. Nf1 {[%clk 0:00:14]}  Qh5+ {[%clk 0:00:03]} 42. Kg1 {[%clk 0:00:15]}  e4 {[%clk 0:00:03]} 43. Rc6 {[%clk 0:00:15]}  Qg5 {[%clk 0:00:03]} 44. Qe2 {[%clk 0:00:06]}  e3 {[%clk 0:00:03]} 45. Nh2 {[%clk 0:00:06]}  Qf4 {[%clk 0:00:02]} 46. Nf3 {[%clk 0:00:05]}  Ng3 {[%clk 0:00:02]} 47. Qe1 {[%clk 0:00:04]}  Ne4 {[%clk 0:00:02]} 48. Nh4+ {[%clk 0:00:02]}  Kg5 {[%clk 0:00:02]} 49. Nf3+ {[%clk 0:00:03]}  Kg6 {[%clk 0:00:02]} 50. Nd4 {[%clk 0:00:04]}  h5 {[%clk 0:00:02]} 51. Qe2 {[%clk 0:00:04]}  h4 {[%clk 0:00:02]} 52. Qf3 {[%clk 0:00:05]}  Qxf3 {[%clk 0:00:02]} 53. gxf3 {[%clk 0:00:06]}  Nd2 {[%clk 0:00:02]} 54. Ne2 {[%clk 0:00:05]}  Kg5 {[%clk 0:00:03]} 55. f4+ {[%clk 0:00:05]}  Kf5 {[%clk 0:00:03]} 56. Kg2 {[%clk 0:00:06]}  Bg7 {[%clk 0:00:03]} 57. Rc5+ {[%clk 0:00:06]}  Ke4 {[%clk 0:00:03]} 58. Rc7 {[%clk 0:00:05]}  Bf6 {[%clk 0:00:03]} 59. Rc6 {[%clk 0:00:05]}  Bd8 {[%clk 0:00:03]} 60. Re6+ {[%clk 0:00:05]}  Kd3 {[%clk 0:00:03]} 61. Ng1 {[%clk 0:00:05]}  Ba5 {[%clk 0:00:02]} 62. Nf3 {[%clk 0:00:05]}  b4 {[%clk 0:00:03]} 63. Rd6+ {[%clk 0:00:05]}  Kc2 {[%clk 0:00:03]} 64. cxb4 {[%clk 0:00:05]}  Bxb4 {[%clk 0:00:03]} 65. Nd4+ {[%clk 0:00:05]}  Kxb2 {[%clk 0:00:03]} 66. f5 {[%clk 0:00:06]}  c3 {[%clk 0:00:03]} 67. Rb6 {[%clk 0:00:06]}  Ka3 {[%clk 0:00:02]} 68. f6 {[%clk 0:00:07]}  Nc4 {[%clk 0:00:02]} 69. Nc2+ {[%clk 0:00:07]}  Kb3 {[%clk 0:00:02]} 70. Rxb4+ {[%clk 0:00:08]}  Kxc2 {[%clk 0:00:03]} 71. Rxc4 {[%clk 0:00:08]}  e2 {[%clk 0:00:03]} 72. Kf2 {[%clk 0:00:09]}  Kd3 {[%clk 0:00:03]} 73. Rc8 {[%clk 0:00:09]}  c2 {[%clk 0:00:04]} 74. Rd8+ {[%clk 0:00:09]}  Kc3 {[%clk 0:00:04]} 75. Rc8+ {[%clk 0:00:09]}  Kd2 {[%clk 0:00:05]} 76. Rxc2+ {[%clk 0:00:09]}  Kxc2 {[%clk 0:00:04]} 77. Kxe2 {[%clk 0:00:09]}  h3 {[%clk 0:00:04]} 78. f7 {[%clk 0:00:10]}  Kc3 {[%clk 0:00:04]} 79. f8=Q {[%clk 0:00:11]}  h2 {[%clk 0:00:05]} 80. Qh8+ {[%clk 0:00:11]}  Kc2 {[%clk 0:00:05]} 81. Qxh2 {[%clk 0:00:12]} 1-0


[Site "https://www.chess.com"]

[Event "Titled Tuesday Blitz June 14 Late 2022"]
[White "Moral Garcia, Serafin"]
[Black "Silvestre, Christian"]
[WhiteFideId "2201925"]
[BlackFideId "30956269"]
[WhiteElo "2251"]
[BlackElo "2328"]
[Result "1-0"]
[Round "02"]
[TimeControl "180+1"]
[Date "2022.06.15"]
[WhiteClock "0:00:03"]
[BlackClock "0:00:04"]

1. e4 {[%clk 0:03:00]}  c6 {[%clk 0:02:57]} 2. d4 {[%clk 0:02:59]}  d5 {[%clk 0:02:57]} 3. exd5 {[%clk 0:03:00]}  cxd5 {[%clk 0:02:56]} 4. c4 {[%clk 0:03:00]}  Nf6 {[%clk 0:02:55]} 5. Nc3 {[%clk 0:03:01]}  g6 {[%clk 0:02:53]} 6. cxd5 {[%clk 0:03:00]}  Bg7 {[%clk 0:02:52]} 7. Bb5+ {[%clk 0:03:00]}  Nbd7 {[%clk 0:02:50]} 8. d6 {[%clk 0:03:00]}  e6 {[%clk 0:02:44]} 9. Nf3 {[%clk 0:02:58]}  O-O {[%clk 0:02:42]} 10. Ne5 {[%clk 0:02:58]}  Qb6 {[%clk 0:02:41]} 11. Nc4 {[%clk 0:02:56]}  Qd8 {[%clk 0:02:38]} 12. Bg5 {[%clk 0:02:54]}  h6 {[%clk 0:02:37]} 13. Bxd7 {[%clk 0:02:50]}  hxg5 {[%clk 0:02:32]} 14. Bxc8 {[%clk 0:02:45]}  Rxc8 {[%clk 0:02:31]} 15. Qd3 {[%clk 0:02:43]}  Nd5 {[%clk 0:02:27]} 16. a3 {[%clk 0:02:31]}  Nxc3 {[%clk 0:02:25]} 17. bxc3 {[%clk 0:02:30]}  b5 {[%clk 0:02:24]} 18. Ne3 {[%clk 0:02:20]}  Qxd6 {[%clk 0:02:16]} 19. O-O {[%clk 0:02:17]}  Rc7 {[%clk 0:02:04]} 20. Rfc1 {[%clk 0:02:06]}  Rfc8 {[%clk 0:02:01]} 21. Qxb5 {[%clk 0:01:51]}  Rxc3 {[%clk 0:02:00]} 22. Rxc3 {[%clk 0:01:51]}  Rxc3 {[%clk 0:01:58]} 23. Qxg5 {[%clk 0:01:51]}  Qxd4 {[%clk 0:01:52]} 24. Rb1 {[%clk 0:01:42]}  Rc8 {[%clk 0:01:45]} 25. h3 {[%clk 0:01:36]}  Qf6 {[%clk 0:01:40]} 26. Qa5 {[%clk 0:01:26]}  Qd4 {[%clk 0:01:36]} 27. Qa6 {[%clk 0:01:23]}  Rc7 {[%clk 0:01:30]} 28. Qa5 {[%clk 0:01:11]}  Qd8 {[%clk 0:01:24]} 29. Qb5 {[%clk 0:01:04]}  Bd4 {[%clk 0:01:20]} 30. Rd1 {[%clk 0:01:01]}  Rd7 {[%clk 0:01:17]} 31. Kf1 {[%clk 0:00:55]}  Rd6 {[%clk 0:01:07]} 32. Nc2 {[%clk 0:00:47]}  Bb6 {[%clk 0:01:03]} 33. Rxd6 {[%clk 0:00:44]}  Qxd6 {[%clk 0:01:04]} 34. Ke2 {[%clk 0:00:43]}  Qf4 {[%clk 0:00:58]} 35. Ne3 {[%clk 0:00:29]}  Qe4 {[%clk 0:00:53]} 36. Qc4 {[%clk 0:00:23]}  Qb7 {[%clk 0:00:43]} 37. a4 {[%clk 0:00:22]}  Bxe3 {[%clk 0:00:41]} 38. Kxe3 {[%clk 0:00:21]}  Qxg2 {[%clk 0:00:41]} 39. Qc8+ {[%clk 0:00:20]}  Kh7 {[%clk 0:00:40]} 40. Qc7 {[%clk 0:00:17]}  Qxh3+ {[%clk 0:00:39]} 41. Ke2 {[%clk 0:00:17]}  Qg4+ {[%clk 0:00:38]} 42. Kf1 {[%clk 0:00:16]}  Qd1+ {[%clk 0:00:35]} 43. Kg2 {[%clk 0:00:16]}  Qg4+ {[%clk 0:00:24]} 44. Kh2 {[%clk 0:00:15]}  Qh4+ {[%clk 0:00:14]} 45. Kg2 {[%clk 0:00:15]}  Qg4+ {[%clk 0:00:14]} 46. Kh2 {[%clk 0:00:15]}  Qxa4 {[%clk 0:00:14]} 47. Qxf7+ {[%clk 0:00:14]}  Kh6 {[%clk 0:00:14]} 48. Qxe6 {[%clk 0:00:14]}  Qh4+ {[%clk 0:00:13]} 49. Kg2 {[%clk 0:00:14]}  Qh5 {[%clk 0:00:13]} 50. Qd7 {[%clk 0:00:12]}  Qg5+ {[%clk 0:00:11]} 51. Kf1 {[%clk 0:00:12]}  a5 {[%clk 0:00:11]} 52. Qe8 {[%clk 0:00:11]}  Qc5 {[%clk 0:00:08]} 53. Qh8+ {[%clk 0:00:10]}  Kg5 {[%clk 0:00:08]} 54. Qd8+ {[%clk 0:00:11]}  Kf5 {[%clk 0:00:07]} 55. Qd7+ {[%clk 0:00:11]}  Ke5 {[%clk 0:00:06]} 56. Qe8+ {[%clk 0:00:10]}  Kf6 {[%clk 0:00:06]} 57. Qd7 {[%clk 0:00:10]}  Qc4+ {[%clk 0:00:04]} 58. Kg2 {[%clk 0:00:09]}  a4 {[%clk 0:00:05]} 59. Qd6+ {[%clk 0:00:09]}  Kg7 {[%clk 0:00:05]} 60. Qe7+ {[%clk 0:00:09]}  Kh6 {[%clk 0:00:05]} 61. Qe3+ {[%clk 0:00:09]}  g5 {[%clk 0:00:05]} 62. Qa3 {[%clk 0:00:06]}  Qg4+ {[%clk 0:00:04]} 63. Kh2 {[%clk 0:00:06]}  Qf4+ {[%clk 0:00:03]} 64. Kg2 {[%clk 0:00:06]}  Qe4+ {[%clk 0:00:03]} 65. Kh2 {[%clk 0:00:06]}  Kh5 {[%clk 0:00:03]} 66. Kg3 {[%clk 0:00:04]}  Qf4+ {[%clk 0:00:03]} 67. Kg2 {[%clk 0:00:04]}  Kg4 {[%clk 0:00:04]} 68. Qh3# {[%clk 0:00:03]} 1-0


[Site "https://www.chess.com"]

[Event "Titled Tuesday Blitz June 14 Late 2022"]
[White "Nazaretyan, Tigran"]
[Black "Ibarra Jerez, Jose Carlos"]
[WhiteFideId "24162345"]
[BlackFideId "2226332"]
[WhiteElo "2179"]
[BlackElo "2628"]
[Result "1-0"]
[Round "02"]
[TimeControl "180+1"]
[Date "2022.06.14"]
[WhiteClock "0:00:35"]
[BlackClock "0:00:01"]

1. d4 {[%clk 0:02:59]}  Nf6 {[%clk 0:02:58]} 2. c4 {[%clk 0:02:59]}  d6 {[%clk 0:02:57]} 3. Nf3 {[%clk 0:02:59]}  g6 {[%clk 0:02:57]} 4. Nc3 {[%clk 0:02:58]}  Bf5 {[%clk 0:02:58]} 5. Ng5 {[%clk 0:02:55]}  Bd7 {[%clk 0:02:57]} 6. e4 {[%clk 0:02:54]}  e5 {[%clk 0:02:57]} 7. Nf3 {[%clk 0:02:51]}  exd4 {[%clk 0:02:54]} 8. Nxd4 {[%clk 0:02:50]}  Bg7 {[%clk 0:02:55]} 9. Be2 {[%clk 0:02:48]}  O-O {[%clk 0:02:52]} 10. O-O {[%clk 0:02:47]}  Re8 {[%clk 0:02:52]} 11. f3 {[%clk 0:02:47]}  Nc6 {[%clk 0:02:53]} 12. Nc2 {[%clk 0:02:46]}  Nh5 {[%clk 0:02:52]} 13. g4 {[%clk 0:02:46]}  Nf6 {[%clk 0:02:48]} 14. Bg5 {[%clk 0:02:43]}  h6 {[%clk 0:02:40]} 15. Bh4 {[%clk 0:02:43]}  a6 {[%clk 0:02:28]} 16. Ne3 {[%clk 0:02:40]}  Qc8 {[%clk 0:02:21]} 17. Rc1 {[%clk 0:02:27]}  h5 {[%clk 0:02:12]} 18. h3 {[%clk 0:02:23]}  hxg4 {[%clk 0:02:07]} 19. hxg4 {[%clk 0:02:22]}  Be6 {[%clk 0:01:55]} 20. Kg2 {[%clk 0:02:12]}  Ne5 {[%clk 0:01:39]} 21. Ncd5 {[%clk 0:02:04]}  Bxd5 {[%clk 0:01:36]} 22. cxd5 {[%clk 0:02:01]}  Qd7 {[%clk 0:01:30]} 23. Qc2 {[%clk 0:01:52]}  Qe7 {[%clk 0:00:37]} 24. Qxc7 {[%clk 0:01:42]}  Ned7 {[%clk 0:00:38]} 25. Nc4 {[%clk 0:01:32]}  Bh6 {[%clk 0:00:30]} 26. Nxd6 {[%clk 0:01:26]}  Bf4 {[%clk 0:00:24]} 27. Bg3 {[%clk 0:01:25]}  Bxg3 {[%clk 0:00:20]} 28. Kxg3 {[%clk 0:01:26]}  Qe5+ {[%clk 0:00:21]} 29. Kg2 {[%clk 0:01:19]}  Re7 {[%clk 0:00:18]} 30. Nxb7 {[%clk 0:01:07]}  Qxb2 {[%clk 0:00:17]} 31. Rc2 {[%clk 0:01:07]}  Qd4 {[%clk 0:00:13]} 32. Qc3 {[%clk 0:01:06]}  Qxc3 {[%clk 0:00:13]} 33. Rxc3 {[%clk 0:01:06]}  Nxd5 {[%clk 0:00:14]} 34. exd5 {[%clk 0:01:02]}  Rxe2+ {[%clk 0:00:15]} 35. Rf2 {[%clk 0:01:02]}  Re5 {[%clk 0:00:15]} 36. Rd2 {[%clk 0:01:00]}  Rb8 {[%clk 0:00:14]} 37. Rc7 {[%clk 0:01:00]}  Nf6 {[%clk 0:00:15]} 38. d6 {[%clk 0:00:59]}  Ne8 {[%clk 0:00:15]} 39. Rc5 {[%clk 0:00:51]}  Rxc5 {[%clk 0:00:09]} 40. Nxc5 {[%clk 0:00:51]}  Nxd6 {[%clk 0:00:03]} 41. Rxd6 {[%clk 0:00:49]}  Rb5 {[%clk 0:00:04]} 42. Nb3 {[%clk 0:00:47]}  a5 {[%clk 0:00:03]} 43. Ra6 {[%clk 0:00:47]}  Rd5 {[%clk 0:00:04]} 44. Rxa5 {[%clk 0:00:47]}  Rd3 {[%clk 0:00:05]} 45. g5 {[%clk 0:00:46]}  Kg7 {[%clk 0:00:05]} 46. Kg3 {[%clk 0:00:45]}  Rc3 {[%clk 0:00:05]} 47. Kg4 {[%clk 0:00:43]}  Rc4+ {[%clk 0:00:04]} 48. f4 {[%clk 0:00:44]}  Rc2 {[%clk 0:00:05]} 49. Ra7 {[%clk 0:00:43]}  Rg2+ {[%clk 0:00:04]} 50. Kf3 {[%clk 0:00:43]}  Rg1 {[%clk 0:00:05]} 51. Nd4 {[%clk 0:00:43]}  Rd1 {[%clk 0:00:04]} 52. Ne6+ {[%clk 0:00:42]}  Kg8 {[%clk 0:00:05]} 53. Ra8+ {[%clk 0:00:42]}  Kh7 {[%clk 0:00:06]} 54. Nd8 {[%clk 0:00:38]}  Kg7 {[%clk 0:00:04]} 55. a4 {[%clk 0:00:38]}  Rd4 {[%clk 0:00:03]} 56. a5 {[%clk 0:00:37]}  Rd5 {[%clk 0:00:03]} 57. a6 {[%clk 0:00:37]}  Rd6 {[%clk 0:00:04]} 58. a7 {[%clk 0:00:37]}  Ra6 {[%clk 0:00:03]} 59. Nc6 {[%clk 0:00:35]}  Rxc6 {[%clk 0:00:01]} 60. Rb8 {[%clk 0:00:35]}  Ra6 {[%clk 0:00:01]} 61. a8=R {[%clk 0:00:35]} 1-0


[Site "https://www.chess.com"]

[Event "Titled Tuesday Blitz June 14 Late 2022"]
[White "Petrovic, Aleksa"]
[Black "Rosenberg, Evan S"]
[WhiteFideId "967629"]
[BlackFideId "2019299"]
[WhiteElo "2117"]
[BlackElo "2298"]
[Result "1-0"]
[Round "02"]
[TimeControl "180+1"]
[Date "2022.06.15"]
[WhiteClock "0:00:04"]
[BlackClock "0:00:01"]

1. d4 {[%clk 0:03:00]}  Nf6 {[%clk 0:02:58]} 2. c4 {[%clk 0:03:00]}  e6 {[%clk 0:02:58]} 3. Nf3 {[%clk 0:02:59]}  Bb4+ {[%clk 0:02:58]} 4. Bd2 {[%clk 0:02:58]}  Qe7 {[%clk 0:02:58]} 5. g3 {[%clk 0:02:57]}  b6 {[%clk 0:02:51]} 6. Bg2 {[%clk 0:02:56]}  Bb7 {[%clk 0:02:51]} 7. O-O {[%clk 0:02:56]}  Bxd2 {[%clk 0:02:50]} 8. Qxd2 {[%clk 0:02:55]}  Ne4 {[%clk 0:02:49]} 9. Qc2 {[%clk 0:02:53]}  f5 {[%clk 0:02:45]} 10. Nfd2 {[%clk 0:02:50]}  Nd6 {[%clk 0:02:44]} 11. Bxb7 {[%clk 0:02:42]}  Nxb7 {[%clk 0:02:45]} 12. e4 {[%clk 0:02:41]}  Nc6 {[%clk 0:02:31]} 13. exf5 {[%clk 0:02:09]}  Nxd4 {[%clk 0:02:30]} 14. Qe4 {[%clk 0:02:09]}  Nc6 {[%clk 0:02:15]} 15. fxe6 {[%clk 0:02:05]}  O-O-O {[%clk 0:01:58]} 16. exd7+ {[%clk 0:01:58]}  Qxd7 {[%clk 0:01:59]} 17. Nc3 {[%clk 0:01:46]}  Nc5 {[%clk 0:01:58]} 18. Qg2 {[%clk 0:01:40]}  Kb8 {[%clk 0:01:23]} 19. Rad1 {[%clk 0:01:26]}  Nd4 {[%clk 0:01:03]} 20. Nf3 {[%clk 0:00:45]}  Nxf3+ {[%clk 0:01:03]} 21. Qxf3 {[%clk 0:00:46]}  Qe6 {[%clk 0:01:00]} 22. Nd5 {[%clk 0:00:35]}  Rhf8 {[%clk 0:00:56]} 23. Qg2 {[%clk 0:00:32]}  a5 {[%clk 0:00:54]} 24. b4 {[%clk 0:00:28]}  axb4 {[%clk 0:00:40]} 25. Nxb4 {[%clk 0:00:29]}  Ne4 {[%clk 0:00:41]} 26. Rxd8+ {[%clk 0:00:25]}  Rxd8 {[%clk 0:00:40]} 27. Re1 {[%clk 0:00:25]}  Rd4 {[%clk 0:00:28]} 28. Nd5 {[%clk 0:00:08]}  Rxc4 {[%clk 0:00:24]} 29. Nf4 {[%clk 0:00:09]}  Qf5 {[%clk 0:00:21]} 30. Qf3 {[%clk 0:00:08]}  g5 {[%clk 0:00:19]} 31. Qd3 {[%clk 0:00:03]}  Nd6 {[%clk 0:00:14]} 32. Qxf5 {[%clk 0:00:03]}  Nxf5 {[%clk 0:00:15]} 33. Ne6 {[%clk 0:00:03]}  Rc2 {[%clk 0:00:11]} 34. Re5 {[%clk 0:00:03]}  Nd6 {[%clk 0:00:10]} 35. Nxg5 {[%clk 0:00:03]}  Rxa2 {[%clk 0:00:10]} 36. Nxh7 {[%clk 0:00:03]}  Ra1+ {[%clk 0:00:10]} 37. Kg2 {[%clk 0:00:03]}  b5 {[%clk 0:00:11]} 38. h4 {[%clk 0:00:03]}  b4 {[%clk 0:00:11]} 39. h5 {[%clk 0:00:04]}  b3 {[%clk 0:00:12]} 40. Re3 {[%clk 0:00:04]}  Rb1 {[%clk 0:00:10]} 41. Nf6 {[%clk 0:00:04]}  b2 {[%clk 0:00:09]} 42. Rb3+ {[%clk 0:00:04]}  Kc8 {[%clk 0:00:08]} 43. h6 {[%clk 0:00:05]}  Nf7 {[%clk 0:00:06]} 44. h7 {[%clk 0:00:05]}  c5 {[%clk 0:00:07]} 45. Ne4 {[%clk 0:00:04]}  c4 {[%clk 0:00:07]} 46. Nd6+ {[%clk 0:00:05]}  Kd7 {[%clk 0:00:05]} 47. Nxf7 {[%clk 0:00:05]}  cxb3 {[%clk 0:00:05]} 48. h8=Q {[%clk 0:00:05]}  Rg1+ {[%clk 0:00:06]} 49. Kxg1 {[%clk 0:00:03]}  b1=Q+ {[%clk 0:00:06]} 50. Kg2 {[%clk 0:00:04]}  Qe4+ {[%clk 0:00:05]} 51. Kh2 {[%clk 0:00:05]}  b2 {[%clk 0:00:04]} 52. Qxb2 {[%clk 0:00:04]}  Qh7+ {[%clk 0:00:03]} 53. Nh6 {[%clk 0:00:04]}  Qxh6+ {[%clk 0:00:03]} 54. Kg2 {[%clk 0:00:04]}  Qc6+ {[%clk 0:00:02]} 55. f3 {[%clk 0:00:05]}  Kc7 {[%clk 0:00:01]} 56. Qe5+ {[%clk 0:00:04]} 1-0


[Site "https://www.chess.com"]

[Event "Titled Tuesday Blitz June 14 Late 2022"]
[White "Rios Escobar, Adan"]
[Black "Murthy, Pappu"]
[WhiteFideId "3403645"]
[BlackFideId "2013401"]
[WhiteElo "2430"]
[BlackElo "2000"]
[Result "1-0"]
[Round "02"]
[TimeControl "180+1"]
[Date "2022.06.15"]
[WhiteClock "0:00:13"]
[BlackClock "0:00:04"]

1. d4 {[%clk 0:03:00]}  Nf6 {[%clk 0:02:58]} 2. g3 {[%clk 0:03:00]}  d5 {[%clk 0:02:55]} 3. Nf3 {[%clk 0:03:00]}  c6 {[%clk 0:02:50]} 4. c4 {[%clk 0:03:00]}  Bg4 {[%clk 0:02:49]} 5. Ne5 {[%clk 0:03:00]}  e6 {[%clk 0:02:48]} 6. Nxg4 {[%clk 0:02:56]}  Nxg4 {[%clk 0:02:47]} 7. e4 {[%clk 0:02:56]}  Nf6 {[%clk 0:02:44]} 8. e5 {[%clk 0:02:54]}  Nfd7 {[%clk 0:02:43]} 9. Qb3 {[%clk 0:02:47]}  b6 {[%clk 0:02:29]} 10. cxd5 {[%clk 0:02:40]}  cxd5 {[%clk 0:02:29]} 11. Nc3 {[%clk 0:02:39]}  Be7 {[%clk 0:02:28]} 12. Nxd5 {[%clk 0:02:22]}  Nc6 {[%clk 0:02:11]} 13. Nxe7 {[%clk 0:02:12]}  Qxe7 {[%clk 0:02:11]} 14. Be3 {[%clk 0:02:08]}  Rc8 {[%clk 0:02:11]} 15. Bg2 {[%clk 0:02:06]}  O-O {[%clk 0:02:09]} 16. O-O {[%clk 0:02:05]}  Na5 {[%clk 0:02:08]} 17. Qd3 {[%clk 0:02:01]}  Nc4 {[%clk 0:02:04]} 18. Bc1 {[%clk 0:01:56]}  h6 {[%clk 0:02:01]} 19. b3 {[%clk 0:01:56]}  Na5 {[%clk 0:02:01]} 20. Bd2 {[%clk 0:01:51]}  Rfd8 {[%clk 0:01:45]} 21. Qe2 {[%clk 0:01:49]}  Nc6 {[%clk 0:01:41]} 22. Be3 {[%clk 0:01:40]}  Nb4 {[%clk 0:01:40]} 23. Rac1 {[%clk 0:01:36]}  Nd5 {[%clk 0:01:38]} 24. Qd2 {[%clk 0:01:31]}  Nb8 {[%clk 0:01:27]} 25. Rxc8 {[%clk 0:01:30]}  Rxc8 {[%clk 0:01:26]} 26. Rc1 {[%clk 0:01:30]}  Nc6 {[%clk 0:01:19]} 27. h4 {[%clk 0:01:20]}  Qd7 {[%clk 0:01:19]} 28. Be4 {[%clk 0:01:13]}  Rd8 {[%clk 0:01:11]} 29. Qe2 {[%clk 0:00:57]}  Nce7 {[%clk 0:01:08]} 30. Bb1 {[%clk 0:00:54]}  Nxe3 {[%clk 0:01:03]} 31. fxe3 {[%clk 0:00:52]}  Rc8 {[%clk 0:00:53]} 32. Rc4 {[%clk 0:00:38]}  b5 {[%clk 0:00:45]} 33. Rxc8+ {[%clk 0:00:34]}  Qxc8 {[%clk 0:00:34]} 34. Qxb5 {[%clk 0:00:32]}  Qc1+ {[%clk 0:00:33]} 35. Qf1 {[%clk 0:00:30]}  Qxe3+ {[%clk 0:00:32]} 36. Kh2 {[%clk 0:00:26]}  Qxd4 {[%clk 0:00:31]} 37. Qe2 {[%clk 0:00:18]}  Nd5 {[%clk 0:00:26]} 38. Qc2 {[%clk 0:00:17]}  g6 {[%clk 0:00:24]} 39. h5 {[%clk 0:00:15]}  Qxe5 {[%clk 0:00:19]} 40. hxg6 {[%clk 0:00:14]}  Qh5+ {[%clk 0:00:19]} 41. Kg1 {[%clk 0:00:14]}  Qxg6 {[%clk 0:00:17]} 42. Qxg6+ {[%clk 0:00:14]}  fxg6 {[%clk 0:00:17]} 43. Bxg6 {[%clk 0:00:15]}  Kg7 {[%clk 0:00:18]} 44. Bd3 {[%clk 0:00:12]}  Kf6 {[%clk 0:00:18]} 45. Bc4 {[%clk 0:00:12]}  Ne3 {[%clk 0:00:17]} 46. Kf2 {[%clk 0:00:11]}  Nf5 {[%clk 0:00:15]} 47. Kf3 {[%clk 0:00:10]}  Nd4+ {[%clk 0:00:15]} 48. Ke4 {[%clk 0:00:10]}  Nc2 {[%clk 0:00:13]} 49. a4 {[%clk 0:00:10]}  Nb4 {[%clk 0:00:13]} 50. Kd4 {[%clk 0:00:10]}  Nc2+ {[%clk 0:00:11]} 51. Kc5 {[%clk 0:00:10]}  Ne3 {[%clk 0:00:10]} 52. Be2 {[%clk 0:00:08]}  Nf5 {[%clk 0:00:09]} 53. g4 {[%clk 0:00:08]}  Ne7 {[%clk 0:00:09]} 54. b4 {[%clk 0:00:09]}  Kg5 {[%clk 0:00:09]} 55. b5 {[%clk 0:00:09]}  Kf4 {[%clk 0:00:09]} 56. a5 {[%clk 0:00:09]}  Ke5 {[%clk 0:00:08]} 57. b6 {[%clk 0:00:09]}  axb6+ {[%clk 0:00:08]} 58. axb6 {[%clk 0:00:10]}  Nc8 {[%clk 0:00:01]} 59. b7 {[%clk 0:00:11]}  Na7 {[%clk 0:00:01]} 60. b8=Q+ {[%clk 0:00:11]}  Kf6 {[%clk 0:00:01]} 61. Qxa7 {[%clk 0:00:12]}  Kg5 {[%clk 0:00:02]} 62. Qb6 {[%clk 0:00:12]}  Kh4 {[%clk 0:00:03]} 63. Qxe6 {[%clk 0:00:12]}  Kg3 {[%clk 0:00:04]} 64. Qxh6 {[%clk 0:00:12]}  Kg2 {[%clk 0:00:04]} 65. g5 {[%clk 0:00:12]}  Kf2 {[%clk 0:00:05]} 66. Bh5 {[%clk 0:00:12]}  Kg3 {[%clk 0:00:04]} 67. g6 {[%clk 0:00:13]}  Kf2 {[%clk 0:00:04]} 68. Qf4+ {[%clk 0:00:13]}  Ke1 {[%clk 0:00:05]} 69. Qe3+ {[%clk 0:00:13]}  Kf1 {[%clk 0:00:04]} 70. Qf3+ {[%clk 0:00:13]}  Ke1 {[%clk 0:00:04]} 71. Qe2# {[%clk 0:00:13]} 1-0


[Site "https://www.chess.com"]